fUST/lending_fUST_20251023
["ID","MTS","AMOUNT","RATE_DAILY","PERIOD"]
[392095728,1761156643101,-152.05,0.00033927,60]
[392095729,1761156643110,-153.1968899,0.00033948,60]
[392095730,1761156643119,-231.78813088,0.00033972,30]
[392095731,1761156643128,-151.25,0.00034024,60]
[392095732,1761156643137,-152.05,0.00034027,60]
[392095733,1761156643146,-180.01080065,0.00034057,12]
[392095734,1761156643155,-1962.09305,0.00034059,2]
[392095735,1761156643165,-151.25,0.00034124,60]
[392095736,1761156643176,-152.05,0.00034127,60]
[392095737,1761156643185,-151.3,0.00034224,60]
[392095738,1761156643195,-152.05,0.00034227,60]
[392095739,1761156643204,-3791.35,0.00034246,120]
[392095740,1761156643213,-1860.0,0.00034301,2]
[392095741,1761156643224,-152.05,0.00034327,60]
[392095742,1761156643235,-214.815,0.00034345,120]
[392095743,1761156643246,-479.82,0.00034361,30]
[392095744,1761156643255,-3636.83,0.000344,14]
[392095745,1761156643266,-152.05,0.00034427,60]
[392095746,1761156643279,-155.0,0.00034466,69]
[392095747,1761156643289,-152.05,0.00034527,60]
[392095748,1761156643298,-403.14601822,0.000346,3]
[392095749,1761156643307,-152.05,0.00034627,60]
[392095750,1761156643319,-152.05,0.00034727,60]
[392095751,1761156643328,-768.955728,0.0003473,10]
[392095752,1761156643337,-314.868402,0.0003473,10]
[392095753,1761156643348,-25454.76,0.000348,14]
[392095754,1761156643358,-152.05,0.00034827,60]
[392095755,1761156643368,-2985.53,0.00034839,2]
[392095756,1761156643377,-768.955728,0.00034848,20]
[392095757,1761156643386,-314.868402,0.00034848,20]
[392095758,1761156643395,-1960.0,0.00034849,2]
[392095759,1761156643405,-1287.66043906,0.00034911,2]
[392095760,1761156643414,-152.05,0.00034927,60]
[392095761,1761156643424,-983.0,0.00034971,2]
[392095762,1761156643433,-632.0,0.00034971,2]
[392095763,1761156643442,-2164.0,0.00034971,2]
[392095764,1761156643451,-411.0,0.00034988,2]
[392095765,1761156643460,-500.0,0.00035,90]
[392095766,1761156643470,-155.00553262,0.00035,3]
[392095767,1761156643479,-250.0,0.00035,7]
[392095768,1761156643489,-2122.38,0.00035,7]
[392095769,1761156643498,-2020.99,0.00035,35]
[392095770,1761156643507,-10000.0,0.00035,30]
[392095771,1761156643517,-768.955728,0.00035011,20]
[392095772,1761156643526,-314.868402,0.00035011,20]
[392095773,1761156643535,-152.05,0.00035027,60]
[392095774,1761156643545,-152.05,0.00035127,60]
[392095775,1761156643554,-768.955728,0.00035174,20]
[392095776,1761156643563,-314.868402,0.00035174,20]
[392095777,1761156643573,-521.48,0.000352,30]
[392095778,1761156643583,-152.05,0.00035227,60]
[392095779,1761156643592,-152.05,0.00035327,60]
[392095780,1761156643601,-768.955728,0.00035337,20]
[392095781,1761156643611,-314.868402,0.00035337,20]
[392095782,1761156643620,-2060.0,0.00035397,2]
[392095783,1761156643630,-300.0,0.000354,13]
[392095784,1761156643639,-300.0,0.000354,13]
[392095785,1761156643648,-300.0,0.000354,13]
[392095786,1761156643658,-300.0,0.000354,13]
[392095787,1761156643667,-300.0,0.000354,13]
[392095788,1761156643676,-300.0,0.000354,13]
[392095789,1761156643686,-300.0,0.000354,13]
[392095790,1761156643696,-300.0,0.000354,13]
[392095791,1761156643704,-300.0,0.000354,13]
[392095792,1761156643715,-300.0,0.000354,13]
[392095793,1761156643724,-300.0,0.000354,13]
[392095794,1761156643733,-300.0,0.000354,13]
[392095795,1761156643743,-300.0,0.000354,13]
[392095796,1761156643752,-300.0,0.000354,13]
[392095797,1761156643762,-300.0,0.000354,13]
[392095798,1761156643773,-300.0,0.000354,13]
[392095799,1761156643783,-200.0,0.000354,13]
[392095800,1761156643792,-160.57,0.000354,13]
[392095801,1761156643803,-152.05,0.00035427,60]
[392095802,1761156643813,-1065.89137556,0.00035469,5]
[392095803,1761156643822,-1475.0,0.00035477,30]
[392095804,1761156643832,-252484.32134085,0.00035498,20]
[392095805,1761156643841,-509.999999,0.00035498,2]
[392095806,1761156643851,-250.0,0.00035498,10]
[392095807,1761156643860,-250.0,0.00035498,10]
[392095808,1761156643869,-250.0,0.00035498,10]
[392095809,1761156643878,-250.0,0.00035498,10]
[392095810,1761156643887,-250.738656,0.00035498,10]
[392095811,1761156643896,-164.0564623,0.000355,30]
[392095812,1761156643905,-160.0,0.000355,45]
[392095813,1761156643914,-160.0,0.000355,60]
[392095814,1761156643924,-478.0,0.000355,120]
[392095815,1761156643935,-768.955728,0.000355,20]
[392095816,1761156643947,-314.868402,0.000355,20]
[392095817,1761156643957,-153.674595,0.000355,20]
[392095818,1761156643968,-251.503616,0.000355,10]
[392095819,1761156643977,-902.28423435,0.00035509,120]
[392095820,1761156643986,-230.18823642,0.0003551,120]
[392095821,1761156643997,-152.05,0.00035527,60]
[392095822,1761156644006,-1613.0,0.00035553,2]
[392095823,1761156644016,-3636.83,0.000356,14]
[392095824,1761156644026,-3791.35,0.00035616,120]
[392095825,1761156644037,-152.05,0.00035627,60]
[392095826,1761156644047,-152.05,0.00035727,60]
[392095827,1761156644058,-152.05,0.00035827,60]
[392095828,1761156644069,-768.0,0.0003585,30]
[392095829,1761156644079,-152.05,0.00035927,60]
[392095830,1761156644089,-377.97539759,0.00035945,2]
[392095831,1761156644099,-768.955728,0.00036,60]
[392095832,1761156644109,-314.868402,0.00036,60]
[392095833,1761156644119,-152.05,0.00036027,60]
[392095834,1761156644128,-153.0,0.00036078,30]
[392095835,1761156644138,-153.0,0.00036078,30]
[392095836,1761156644147,-153.0,0.00036078,30]
[392095837,1761156644156,-153.0,0.00036078,30]
[392095838,1761156644165,-152.05,0.00036127,60]
[392095839,1761156644174,-203.47398103,0.0003621,2]
[392095840,1761156644183,-152.05,0.00036227,60]
[392095841,1761156644194,-264.66288695,0.0003624,2]
[392095842,1761156644203,-2122.38,0.000363,7]
[392095843,1761156644213,-152.05,0.00036327,60]
[392095844,1761156644223,-6453.0,0.00036378,3]
[392095845,1761156644232,-152.05,0.00036427,60]
[392095846,1761156644242,-152.05,0.00036527,60]
[392095847,1761156644251,-25454.76,0.000366,14]
[392095848,1761156644260,-152.05,0.00036627,60]
[392095849,1761156644271,-152.05,0.00036727,60]
[392095850,1761156644282,-3358.73,0.00036774,2]
[392095851,1761156644291,-164.0,0.000368,45]
[392095852,1761156644300,-3636.83,0.000368,14]
[392095853,1761156644311,-152.05,0.00036827,60]
[392095854,1761156644321,-768.955728,0.0003687,10]
[392095855,1761156644331,-314.868402,0.0003687,10]
[392095856,1761156644340,-152.05,0.00036927,60]
[392095857,1761156644351,-3791.35,0.00036986,120]
[392095858,1761156644361,-639.76,0.00037005,30]
[392095859,1761156644371,-152.29,0.00037027,60]
[392095860,1761156644380,-1144.77726153,0.00037251,120]
[392095861,1761156644390,-165.0,0.000373,120]
[392095862,1761156644399,-160.0,0.00037358,3]
[392095863,1761156644408,-768.955728,0.00037387,60]
[392095864,1761156644417,-314.868402,0.00037387,60]
[392095865,1761156644427,-980.36652386,0.00037509,120]
[392095866,1761156644437,-160.0,0.000378,60]
[392095867,1761156644522,-1014.79278425,0.000378,2]
[392095868,1761156644534,-2122.38,0.000378,7]
[392095869,1761156644544,-200.0,0.00037875,120]
[392095870,1761156644553,-983.0,0.00037971,2]
[392095871,1761156644563,-632.0,0.00037971,2]
[392095872,1761156644573,-2164.0,0.00037971,2]
[392095873,1761156644582,-411.0,0.00037988,2]
[392095874,1761156644592,-201.0,0.0003809,48]
[392095875,1761156644602,-200.0,0.00038136,120]
[392095876,1761156644611,-3791.35,0.00038356,120]
[392095877,1761156644621,-500.0,0.0003844,30]
[392095878,1761156644631,-2258.0,0.00038568,5]
[392095879,1761156644641,-3731.92,0.0003871,2]
[392095880,1761156644650,-160.0,0.0003877,4]
[392095881,1761156644659,-768.955728,0.00038774,60]
[392095882,1761156644669,-314.868402,0.00038774,60]
[392095883,1761156644678,-25454.76,0.000388,14]
[392095884,1761156644687,-1038.999999,0.00039,30]
[392095885,1761156644696,-403.14601822,0.00039,120]
[392095886,1761156644706,-768.955728,0.0003901,10]
[392095887,1761156644715,-314.868402,0.0003901,10]
[392095888,1761156644724,-500.0,0.00039327,30]
[392095889,1761156644734,-500.0,0.00039392,30]
[392095890,1761156644743,-161.0,0.00039397,120]
[392095891,1761156644753,-1144.77726153,0.00039487,120]
[392095892,1761156644762,-1058.44881337,0.00039509,120]
[392095893,1761156644772,-5068.0,0.00039645,5]
[392095894,1761156644781,-799.7,0.00039648,30]
[392095895,1761156644791,-631.924311,0.00039654,2]
[392095896,1761156644800,-3791.35,0.00039726,120]
[392095897,1761156644809,-160.0,0.000398,90]
[392095898,1761156644819,-160.0,0.000398,90]
[392095899,1761156644828,-160.0,0.000398,90]
[392095900,1761156644837,-13980.55326019,0.000399,120]
[392095901,1761156644846,-160.0,0.0004,120]
[392095902,1761156644856,-160.0,0.0004,120]
[392095903,1761156644866,-1180.67,0.0004,2]
[392095904,1761156644875,-500.0,0.00040129,30]
[392095905,1761156644885,-768.955728,0.00040161,60]
[392095906,1761156644894,-314.868402,0.00040161,60]
[392095907,1761156644904,-160.0,0.00040183,5]
[392095908,1761156644913,-695.67820741,0.000406,120]
[392095909,1761156644923,-179.02309921,0.000406,120]
[392095910,1761156644932,-194.07751545,0.000406,120]
[392095911,1761156644941,-195.16799222,0.000406,120]
[392095912,1761156644950,-202.0,0.0004068,55]
[392095913,1761156644960,-500.0,0.00040739,30]
[392095914,1761156644970,-500.0,0.00040888,30]
[392095915,1761156644979,-983.0,0.00040971,2]
[392095916,1761156644988,-632.0,0.00040971,2]
[392095917,1761156644997,-2164.0,0.00040971,2]
[392095918,1761156645007,-411.0,0.00040988,2]
[392095919,1761156645016,-500.0,0.00040995,30]
[392095920,1761156645025,-1379764.64993614,0.00041,10]
[392095921,1761156645115,-1979456.25410996,0.00041,10]
[392095922,1761156645126,-611.14832869,0.00041,10]
[392095923,1761156645257,-311.22034077,0.00024805,2]
[392095939,1761156665639,-523.18279134,0.00023673,2]
[392095940,1761156665666,-662.93759421,0.00023673,2]
[392095941,1761156665697,-300.0,0.00023673,2]
[392095942,1761156665724,-1000.0,0.00023674,2]
[392095943,1761156665751,-1000.0,0.00023674,2]
[392095944,1761156665780,-1000.0,0.00023674,2]
[392095945,1761156665807,-27.7692289,0.00023674,2]
[392095946,1761156665917,-972.2307711,0.00023674,2]
[392095947,1761156665944,-1000.0,0.00023674,2]
[392095948,1761156665971,-976.25709614,0.00023674,2]
[392095949,1761156679446,500.0,0.00023672,2]
[392095950,1761156679489,500.0,0.00023672,2]
[392095951,1761156679520,500.0,0.00023672,2]
[392095952,1761156679551,500.0,0.00023672,2]
[392095953,1761156679585,500.0,0.00023672,2]
[392095954,1761156679612,500.0,0.00023672,2]
[392095955,1761156679642,502.81412001,0.00023672,2]
[392095956,1761156679676,500.0,0.00023672,2]
[392095957,1761156685487,500.0,0.00023673,2]
[392095958,1761156687709,9500.01,0.00023575,2]
[392095959,1761156687732,10000.01,0.00023575,2]
[392095960,1761156689176,-323.28,0.00023565,10]
[392095961,1761156690510,-5350.63587999,0.00023575,2]
[392095962,1761156690744,-10000.01,0.00023575,2]
[392095963,1761156693209,-10000.01,0.00023575,2]
[392095964,1761156693466,-10000.01,0.00023575,2]
[392095965,1761156700582,5000.0,0.00023501,2]
[392095966,1761156702358,-269.4,0.00023565,10]
[392095967,1761156702391,-9461.21,0.00023575,2]
[392095968,1761156703189,-10000.01,0.00023575,2]
[392095969,1761156703933,-10000.01,0.00023575,2]
[392095970,1761156722737,5000.0,0.00023501,2]
[392095971,1761156734718,3974.8965333,0.00022628,2]
[392095972,1761156745000,5000.0,0.00023501,2]
[392095973,1761156760924,267.14,0.00021916,2]
[392095974,1761156762250,930.15273681,0.000235,2]
[392095975,1761156767192,4626.23100704,0.00023501,2]
[392095976,1761156788746,424.6219075,0.00035498,120]
[392095978,1761156840878,263.74,0.00021287,2]
[392095979,1761156841315,527.48,0.00023222,2]
[392095980,1761156879794,1342.3023982,0.00022574,2]
[392095981,1761156919467,253.67,0.00021792,2]
[392095982,1761156923144,1126.8213215,0.00023473,2]
[392095983,1761156988158,20856.96981932,0.000235,2]
[392095984,1761156999477,250.44,0.00021117,2]
[392095985,1761156999865,500.88,0.00023036,2]
[392095986,1761157063187,1058.59473062,0.00022921,10]
[392095987,1761157078321,240.88,0.00021043,2]
[392095988,1761157078708,481.75,0.00022956,2]
[392095989,1761157102557,836.27797842,0.000235,2]
[392095990,1761157157804,231.68,0.00021058,2]
[392095991,1761157158206,463.36,0.00022972,2]
[392095992,1761157163573,985.96865633,0.00023471,2]
[392095994,1761157243879,13904.6465462,0.000235,2]
[392095995,1761157395715,6381.88,0.00023501,2]
[392095996,1761157423191,183.588196,0.00022568,2]
[392095997,1761157424037,862.72257428,0.00023469,2]
[392095998,1761157442856,669.02238276,0.000235,2]
[392095999,1761157459393,222.83,0.0002102,2]
[392096000,1761157459773,445.67,0.0002293,2]
[392096001,1761157499136,9269.76436414,0.000235,2]
[392096006,1761157538932,214.33,0.00021704,2]
[392096007,1761157562529,17898.5211895,0.00022568,2]
[392096019,1761157693260,5511.15595764,0.00021,5]
[392096021,1761157705553,2115.0061041,0.000176,2]
[392096022,1761157709735,286.66264542,0.0001,2]
[392096023,1761157710181,301.28205394,0.0002,2]
[392096024,1761157711468,358.03742084,0.00022,2]
[392096025,1761157712984,10000.01,0.0002,2]
[392096026,1761157713007,1427.86581806,0.0002,2]
[392096027,1761157713029,3122.29948145,0.0002,2]
[392096028,1761157714937,687.85389211,0.0001,7]
[392096029,1761157715017,7586.80302262,0.00017,2]
[392096030,1761157715423,1725.35308527,0.00022,5]
[392096031,1761157715445,25933.23318187,0.00022,5]
[392096033,1761157723877,886.89345988,0.0002,2]
[392096034,1761157728898,3443.17521907,0.00022,2]
[392096035,1761157740577,58717.35,0.00023,2]
[392096083,1761157754363,6179.84290942,0.000235,2]
[392096086,1761157768527,374.69,0.00022091,2]
[392096117,1761157783174,535.2179062,0.000235,2]
[392096118,1761157791060,10000.0,0.00030137,120]
[392096119,1761157809870,177.0,0.00024,120]
[392096179,1761157832813,-160.0,0.00023544,2]
[392096181,1761157832822,-326.34474907,0.00023559,2]
[392096183,1761157832831,-175.15,0.00023565,3]
[392096185,1761157832841,-525.49,0.00023565,3]
[392096187,1761157832850,-200.8,0.00023565,10]
[392096189,1761157832861,-300.0,0.00023565,2]
[392096191,1761157832870,-1200.0,0.00023565,2]
[392096193,1761157832879,-227.8,0.00023565,10]
[392096195,1761157832888,-217.72,0.00023565,10]
[392096197,1761157832897,-500.0,0.00023569,2]
[392096199,1761157832906,-500.0,0.00023571,2]
[392096201,1761157832915,-500.0,0.00023571,2]
[392096203,1761157832925,-500.0,0.00023574,2]
[392096205,1761157832935,-239.93123493,0.00023574,2]
[392096206,1761157832944,-360.58108967,0.00023574,2]
[392096207,1761157832953,-20961.18292634,0.00023575,2]
[392096208,1761157832969,-737.38841455,0.00023575,2]
[392096209,1761157832980,-1840.47029104,0.00023575,2]
[392096210,1761157832991,-67393.10904669,0.00023575,2]
[392096211,1761157833002,-126124.30376328,0.00023575,2]
[392096212,1761157833013,-1719.29900691,0.00023575,2]
[392096225,1761157838326,-500.0,0.00023565,2]
[392096227,1761157838336,-500.0,0.00023565,2]
[392096229,1761157838346,-500.0,0.00023565,2]
[392096231,1761157838356,-297.26123324,0.00023565,2]
[392096233,1761157838365,-500.0,0.00023565,2]
[392096235,1761157838375,-500.0,0.00023565,2]
[392096237,1761157838385,-500.0,0.00023565,2]
[392096239,1761157838394,-500.0,0.00023565,2]
[392096241,1761157838403,-500.0,0.00023565,2]
[392096243,1761157838412,-500.0,0.00023565,2]
[392096245,1761157838422,-500.0,0.00023565,2]
[392096247,1761157838431,-304.6738453,0.00023565,2]
[392096249,1761157838441,-500.0,0.00023565,2]
[392096251,1761157838451,-434.20787984,0.00023565,2]
[392096253,1761157838461,-500.0,0.00023565,2]
[392096255,1761157838470,-500.0,0.00023565,2]
[392096257,1761157838479,-500.0,0.00023565,2]
[392096259,1761157838488,-90.68996053,0.00023565,2]
[392096261,1761157838499,-307.8364998,0.00023565,2]
[392096263,1761157838510,-101.47353967,0.00023565,2]
[392096264,1761157838520,-500.0,0.00023565,2]
[392096266,1761157838529,-589.12172042,0.00023565,2]
[392096267,1761157838539,-500.0,0.00023565,2]
[392096268,1761157838548,-500.0,0.00023565,2]
[392096269,1761157838559,-500.0,0.00023565,2]
[392096270,1761157838568,-500.0,0.00023565,2]
[392096271,1761157838578,-500.0,0.00023565,2]
[392096272,1761157838591,-500.0,0.00023565,2]
[392096273,1761157838600,-500.0,0.00023565,2]
[392096274,1761157838611,-500.0,0.00023565,2]
[392096275,1761157838622,-500.0,0.00023565,2]
[392096276,1761157838632,-500.0,0.00023565,2]
[392096277,1761157838641,-500.0,0.00023565,2]
[392096278,1761157838651,-500.0,0.00023565,2]
[392096279,1761157838660,-500.0,0.00023565,2]
[392096280,1761157838671,-500.0,0.00023565,2]
[392096281,1761157838681,-333.89068365,0.00023565,2]
[392096282,1761157838690,-500.0,0.00023565,2]
[392096283,1761157838700,-450.0,0.00023565,2]
[392096284,1761157838709,-500.0,0.00023565,2]
[392096285,1761157838718,-500.0,0.00023565,2]
[392096286,1761157838728,-500.0,0.00023565,2]
[392096287,1761157838738,-500.0,0.00023565,2]
[392096288,1761157838748,-186.85350406,0.00023565,2]
[392096289,1761157838759,-252.74533438,0.00023565,2]
[392096290,1761157838768,-500.0,0.00023565,2]
[392096292,1761157838778,-500.0,0.00023565,2]
[392096294,1761157838788,-500.0,0.00023565,2]
[392096296,1761157838797,-500.0,0.00023565,2]
[392096298,1761157838807,-500.0,0.00023565,2]
[392096300,1761157838816,-500.0,0.00023565,2]
[392096302,1761157838826,-500.0,0.00023565,2]
[392096304,1761157838836,-500.0,0.00023565,2]
[392096306,1761157838845,-500.0,0.00023565,2]
[392096308,1761157838855,-500.0,0.00023565,2]
[392096310,1761157838864,-500.0,0.00023565,2]
[392096312,1761157838874,-500.0,0.00023565,2]
[392096314,1761157838883,-500.0,0.00023565,2]
[392096315,1761157838893,-500.0,0.00023565,2]
[392096317,1761157838902,-500.0,0.00023565,2]
[392096319,1761157838912,-500.0,0.00023565,2]
[392096321,1761157838921,-500.0,0.00023565,2]
[392096323,1761157838931,-500.0,0.00023565,2]
[392096325,1761157838940,-500.0,0.00023565,2]
[392096327,1761157838950,-500.0,0.00023565,2]
[392096329,1761157838960,-500.0,0.00023565,2]
[392096331,1761157838969,-516.8400733,0.00023565,2]
[392096333,1761157838979,-500.0,0.00023565,2]
[392096335,1761157838988,-500.0,0.00023565,2]
[392096337,1761157838998,-500.0,0.00023565,2]
[392096339,1761157839008,-500.0,0.00023565,2]
[392096341,1761157839018,-500.0,0.00023565,2]
[392096343,1761157839028,-500.0,0.00023565,2]
[392096345,1761157839038,-500.0,0.00023565,2]
[392096347,1761157839048,-500.0,0.00023565,2]
[392096349,1761157839058,-500.0,0.00023565,2]
[392096351,1761157839067,-500.0,0.00023565,2]
[392096353,1761157839078,-500.0,0.00023565,2]
[392096355,1761157839088,-500.0,0.00023565,2]
[392096357,1761157839098,-66912.3306712,0.00023575,2]
[392096359,1761157839108,-10888.27,0.000236,7]
[392096361,1761157839118,-500.0,0.00023848,2]
[392096363,1761157839128,-213.83649943,0.00023889,2]
[392096365,1761157839139,-500.0,0.00023973,2]
[392096367,1761157839149,-100000.0,0.0002399,2]
[392096369,1761157839159,-1778.9764492,0.00024,60]
[392096371,1761157839169,-600.0,0.00024042,20]
[392096373,1761157839178,-168.0,0.00024065,2]
[392096375,1761157839189,-151.0,0.00024099,2]
[392096377,1761157839199,-181.40628429,0.00024099,2]
[392096379,1761157839209,-277.9173203,0.00024099,2]
[392096381,1761157839219,-151.0,0.00024099,2]
[392096383,1761157839229,-152.65504973,0.00024099,2]
[392096385,1761157839239,-151.0,0.00024099,2]
[392096387,1761157839248,-151.0,0.00024099,2]
[392096389,1761157839257,-151.0,0.00024099,2]
[392096391,1761157839266,-152.0600527,0.00024099,2]
[392096393,1761157839275,-151.0,0.00024099,2]
[392096395,1761157839284,-151.0,0.00024099,2]
[392096397,1761157839293,-152.51769787,0.00024099,2]
[392096399,1761157839302,-151.0,0.00024099,2]
[392096401,1761157839311,-151.0,0.00024099,2]
[392096403,1761157839321,-500.0,0.00024099,2]
[392096405,1761157839329,-151.0,0.00024099,2]
[392096407,1761157839338,-500.0,0.00024099,2]
[392096409,1761157839348,-151.24347366,0.00024099,2]
[392096411,1761157839357,-151.0,0.00024099,2]
[392096413,1761157839366,-151.0,0.00024099,2]
[392096415,1761157839375,-278.02275387,0.00024099,2]
[392096417,1761157839385,-151.18089603,0.00024099,2]
[392096419,1761157839395,-500.0,0.00024099,2]
[392096421,1761157839406,-151.0,0.00024099,2]
[392096423,1761157839415,-151.11869044,0.00024099,2]
[392096434,1761157839509,-154.48274439,0.00024099,2]
[392096437,1761157839522,-151.0,0.00024099,2]
[392096439,1761157839531,-151.0,0.00024099,2]
[392096440,1761157839541,-165.33192921,0.00024099,2]
[392096442,1761157839551,-202.02370346,0.00024099,2]
[392096445,1761157839560,-749.39,0.000241,2]
[392096446,1761157839569,-500.0,0.00024122,2]
[392096448,1761157839580,-855.34599772,0.00024135,2]
[392096449,1761157839592,-500.0,0.00024142,2]
[392096451,1761157839601,-53019.7432221,0.00024142,2]
[392096453,1761157839611,-153.51067577,0.00024154,2]
[392096455,1761157839620,-151.0,0.00024154,2]
[392096457,1761157839631,-187.26822807,0.00024154,2]
[392096459,1761157839640,-151.0,0.00024154,2]
[392096461,1761157839650,-151.0,0.00024154,2]
[392096463,1761157839658,-151.0,0.00024154,2]
[392096465,1761157839668,-151.0,0.00024154,2]
[392096467,1761157839677,-152.80166852,0.00024154,2]
[392096468,1761157839686,-151.0,0.00024154,2]
[392096470,1761157839695,-500.0,0.00024154,2]
[392096472,1761157839704,-151.0,0.00024154,2]
[392096474,1761157839714,-500.0,0.00024154,2]
[392096475,1761157839725,-151.0,0.00024154,2]
[392096476,1761157839735,-151.0,0.00024154,2]
[392096477,1761157839744,-500.0,0.00024154,2]
[392096478,1761157839755,-151.0,0.00024154,2]
[392096479,1761157839765,-162.36300707,0.00024154,2]
[392096480,1761157839774,-151.0,0.00024209,2]
[392096481,1761157839783,-151.0,0.00024209,2]
[392096482,1761157839793,-151.0,0.00024209,2]
[392096483,1761157839802,-151.0,0.00024209,2]
[392096484,1761157839811,-151.0,0.00024209,2]
[392096485,1761157839823,-202.95987409,0.00024209,2]
[392096486,1761157839832,-500.0,0.00024209,2]
[392096487,1761157839842,-199.92436794,0.00024209,2]
[392096488,1761157839853,-641.56667443,0.00024209,2]
[392096489,1761157839863,-198.72705308,0.00024209,2]
[392096490,1761157839873,-250.14286038,0.00024209,2]
[392096491,1761157839883,-155.17881345,0.00024209,2]
[392096492,1761157839892,-151.0,0.00024209,2]
[392096493,1761157839901,-204.08490076,0.00024263,2]
[392096494,1761157839912,-201.10014888,0.00024263,2]
[392096495,1761157839921,-151.0,0.00024263,2]
[392096496,1761157839930,-151.0,0.00024263,2]
[392096497,1761157839939,-201.87286507,0.00024263,2]
[392096498,1761157839948,-156.43795525,0.00024318,2]
[392096499,1761157839958,-154.92803496,0.00024318,2]
[392096501,1761157839968,-11872.13494283,0.00024341,2]
[392096503,1761157839977,-500.0,0.00024396,2]
[392096504,1761157839986,-624.78465503,0.00024521,2]
[392096505,1761157839996,-8651.03148667,0.0002465,2]
[392096506,1761157840005,-500.0,0.00024873,2]
[392096507,1761157840014,-387.03466343,0.00024873,2]
[392096508,1761157840023,-500.0,0.00024873,2]
[392096509,1761157840032,-500.39457438,0.00024873,2]
[392096510,1761157840042,-500.0,0.00024873,2]
[392096511,1761157840051,-500.0,0.00024873,2]
[392096512,1761157840060,-500.0,0.00024873,2]
[392096513,1761157840069,-501.9168495,0.00024873,2]
[392096514,1761157840078,-500.0,0.00024873,2]
[392096516,1761157840087,-500.48425532,0.00024873,2]
[392096517,1761157840096,-165.62321695,0.00024873,2]
[392096518,1761157840110,-630.81369819,0.00024873,2]
[392096519,1761157840119,-501.80797894,0.00024873,2]
[392096520,1761157840129,-619.07400712,0.00024873,2]
[392096521,1761157840138,-500.82699209,0.00024873,2]
[392096522,1761157840148,-500.0,0.00024873,2]
[392096523,1761157840158,-500.0,0.00024873,2]
[392096524,1761157840167,-503.68105493,0.00024873,2]
[392096525,1761157840176,-500.0,0.00024873,2]
[392096527,1761157840186,-500.0,0.00024873,2]
[392096529,1761157840195,-500.0,0.00024873,2]
[392096531,1761157840205,-500.0,0.00024873,2]
[392096533,1761157840214,-500.0,0.00024873,2]
[392096535,1761157840223,-500.0,0.00024873,2]
[392096536,1761157840232,-500.0,0.00024873,2]
[392096537,1761157840242,-162.28282621,0.00024873,2]
[392096538,1761157840251,-157.70898129,0.00024873,2]
[392096539,1761157840260,-294.19273897,0.00024873,2]
[392096540,1761157840270,-500.0,0.00024873,2]
[392096541,1761157840279,-501.79118445,0.00024873,2]
[392096542,1761157840288,-500.0,0.00024873,2]
[392096544,1761157840298,-500.0,0.00024873,2]
[392096546,1761157840307,-500.0,0.00024873,2]
[392096548,1761157840316,-500.0,0.00024873,2]
[392096550,1761157840325,-500.0,0.00024873,2]
[392096551,1761157840334,-500.0,0.00024873,2]